Cogmind - Beta 15 @@@ ROGUE MODE // 2025.05.21 @ 10:50:48 Player: Delton Result: Self-destructed Performance ------------- Evolutions (5) 2500 Regions Visited (6) 1200 Robots Destroyed (14) 70 Value Destroyed (323) 323 Prototype IDs (14) 280 Alien Tech Used (0) 0 Bonus (800) 800 TOTAL SCORE: 5173 Bonus ------- Registered with UFD 300 Met Optimus in HQ 500 Cogmind --------- Core Integrity 1000/1000 Matter 183/550 Energy 400/400 System Corruption 2% Temperature Warm (137) Movement Treading (260) Ox1 Location -5/Factory Parts ------- > --- POWER (3) -------- Ion Engine Ion Engine > --- PROPULSION (4) --- Spiked Treads > --- UTILITY (7) ------ Matter Compressor IFF Parser Surveybot 17 Chip 0b10 Decoder Chip [Generic] Targeting Computer A0-MCA's Component Scanner > --- WEAPON (3) ------- Heavy Battle Rifle Heavy Battle Rifle Coil Gun > --- INVENTORY (5) ---- Fission Core Fission Core Armored Medium Treads Improved EM Pulse Cannon DRS Beacon (Ready) Peak State ------------ > --- POWER ------------ Ion Engine Ion Engine Fission Core > --- PROPULSION ------- Spiked Treads Spiked Treads Improved Medium Treads > --- UTILITY ---------- Matter Compressor IFF Parser Surveybot 17 Chip 0b10 Decoder Chip [Generic] Targeting Computer A0-MCA's Component Scanner > --- WEAPON ----------- Heavy Battle Rifle Heavy Battle Rifle Coil Gun > --- INVENTORY -------- Fission Core Fission Core Armored Medium Treads DRS Beacon [Rating: 63] Favorites ----------- Power Ion Engine Engine Ion Engine Power Core Fission Core Propulsion Spiked Treads Treads Spiked Treads Leg Aluminum Leg Wheel Subdweller Monowheel Utility Targeting Computer Device IFF Parser Storage Matter Compressor Processor Targeting Computer Protection Core Shielding Weapon Heavy Battle Rifle Energy Gun EM Pulse Gun Energy Cannon Subdweller Beam Cannon Ballistic Gun Heavy Battle Rifle Build | -11 -10 -10 -10 -9 -6 -5 ------- Run | Yrd Mat Min Sub Scr Fac Fac Slots Evolved 10 | . . . . . 8 2 Power 2 | . . . . . 2 . Propulsion 2 | . . . . . 1 1 Utility 5 | . . . . . 4 1 Weapon 1 | . . . . . 1 . Parts Attached 29 | 5 3 . 10 4 5 2 Power 4 | 1 . . . 2 1 . Engine 3 | 1 . . . 2 . . Core 1 | . . . . . 1 . Reactor . | . . . . . . . Propulsion 7 | 2 . . 4 . 1 . Treads 3 | . . . 2 . 1 . Leg 2 | 2 . . . . . . Wheel 2 | . . . 2 . . . Hover . | . . . . . . . Flight . | . . . . . . . Utility 7 | . 2 . . 1 2 2 Device 1 | . . . . . . 1 Storage 1 | . . . . . . 1 Processor 4 | . 1 . . 1 2 . Hackware . | . . . . . . . Protection 1 | . 1 . . . . . Artifact . | . . . . . . . Weapon 11 | 2 1 . 6 1 1 . Energy Gun 2 | 1 . . 1 . . . Energy Cannon 1 | . . . . 1 . . Ballistic Gun 8 | 1 1 . 5 . 1 . Ballistic Cannon . | . . . . . . . Launcher . | . . . . . . . Special Weapon . | . . . . . . . Impact Weapon . | . . . . . . . Slashing Weapon . | . . . . . . . Piercing Weapon . | . . . . . . . Special Melee Weapon . | . . . . . . . Unidentified Prototypes . | . . . . . . . Parts Lost 7 | . . . 5 . . 2 Power 1 | . . . . . . 1 Propulsion 3 | . . . 2 . . 1 Utility . | . . . . . . . Weapon 3 | . . . 3 . . . Highest Loss Streak 4 | . . . 4 . . 2 To Critical Strikes . | . . . . . . . Average Backups 2 | . 2 3 3 2 1 3 Power 1 | . . 1 1 2 1 2 Propulsion . | . . . . . . . Utility . | . . . . . . . Weapon . | . 1 2 1 . . . Tool/Special . | . . . . . . . Unused Backups 5 | . . . . 1 . 4 Power 2 | . . . . . . 2 Propulsion 1 | . . . . . . 1 Utility . | . . . . . . . Weapon 2 | . . . . 1 . 1 Tool/Special . | . . . . . . . Average Slot Usage (%) 96 | . 93 100 94 99 83 86 Engine 13 | . 14 14 14 14 13 11 Treads 20 | . . . 8 28 19 16 Leg 3 | . 28 28 6 . . . Wheel 1 | . . . 8 . . . Processor 17 | . 9 14 14 18 25 23 Protection 9 | . 12 14 14 9 . . Energy Gun 2 | . 14 14 8 . . . Ballistic Gun 23 | . 14 14 19 27 19 17 Peak Build Rating 63 | 5 7 7 15 21 53 63 Average Rating 21 | 3 6 7 9 16 50 62 On Entrance 15 | . 5 7 7 15 21 53 Naked Turns . | . . . . . . . Heaviest Build 39 | 8 10 10 14 18 33 39 Greatest Support 70 | 20 20 20 40 40 70 70 Greatest Overweight (x) 3 | . . . 3 . . . Average Overweight (x) . | . . . . . . . Largest Inventory Capacity 5 | 5 5 5 5 5 5 5 Average Capacity 5 | 5 5 5 5 5 5 5 Most Carried 5 | 5 3 3 5 5 4 5 Average Carried 3 | . 2 3 3 3 2 4 Final Capacity 5 | 5 5 5 5 5 5 5 Final Carried 5 | . 3 3 5 5 4 5 Class Distribution -------------------- 67% | Derelict-Mutant 16% | Mutant 16% | Derelict-Gunner Dominant Class ---------------- Mutant | -10/Materials Mutant | -10/Mines Derelict-Mutant | -10/Subcaves Derelict-Mutant | -9/Scraptown Derelict-Gunner | -6/Factory Derelict-Gunner | -5/Factory Resources | -11 -10 -10 -10 -9 -6 -5 ----------- Run | Yrd Mat Min Sub Scr Fac Fac Matter Collected 600 | 231 61 . 222 86 . . Remotely . | . . . . . . . Salvage Created 404 | . 72 . 261 . . 71 Parts 38 | . 13 . 20 . . 5 Haulers Intercepted . | . . . . . . . Recyclers Shooed . | . . . . . . . Parts Field Recycled . | . . . . . . . Retrieved Matter . | . . . . . . . Parts Self-Destructed 17 | . . . 17 . . . Prevented . | . . . . . . . Kills | -11 -10 -10 -10 -9 -6 -5 ------- Run | Yrd Mat Min Sub Scr Fac Fac Combat Hostiles Destroyed 13 | . 3 . 9 . . 1 Guns 13 | . 3 . 9 . . 1 Classes Destroyed 4 | . 2 . 1 . . 1 Watcher 1 | . 1 . . . . . Swarmer 8 | . 3 . 5 . . . Grunt 1 | . . . . . . 1 Subdweller 4 | . . . 4 . . . Best Kill Streak 4 | . 3 . 4 . . 1 Combat Bots Only 4 | . 3 . 4 . . 1 Max Kills in Single Turn 1 | . 1 . 1 . . 1 Gunslinging . | . . . . . . . Exploded . | . . . . . . . Melee . | . . . . . . . Uniques/NPCs Destroyed . | . . . . . . . Combat | -11 -10 -10 -10 -9 -6 -5 -------- Run | Yrd Mat Min Sub Scr Fac Fac Hostile Shots Fired 113 | . 6 . 71 . . 36 Missed 34 | . 3 . 20 . . 11 Hits 79 | . 3 . 51 . . 25 Projectile 79 | . 3 . 51 . . 25 Critical Strikes 4 | . . . 2 . . 2 Damage Taken 1352 | . 21 . 845 . . 486 Core 128 | . 5 . 123 . . . Absorbed by Shields . | . . . . . . . Redirected to Shielding 28 | . 1 . 27 . . . Core Remaining (%) 82 | 100 . . . 48 100 . Volleys Fired 52 | . 4 . 44 . . 4 Largest 3 | . 2 . 2 . . 3 Hottest 96 | . 60 . 75 . . 96 Shots Fired 99 | . 8 . 80 . . 11 Gun 99 | . 8 . 80 . . 11 Cannon . | . . . . . . . Launcher . | . . . . . . . Special . | . . . . . . . Kinetic 72 | . 4 . 57 . . 11 Thermal . | . . . . . . . Explosive . | . . . . . . . Electromagnetic 27 | . 4 . 23 . . . Robot Hit Streak 19 | . 3 . 19 . . 6 Robot Miss Streak 4 | . 1 . 4 . . 2 Penetration Max . | . . . . . . . Secondary Targets 3 | . . . 2 . . 1 Max Gunslinging Chain 1 | . . . 1 . . 1 Shots Hit Robots 76 | . 5 . 64 . . 7 Core Hits 22 | . 4 . 14 . . 4 Critical Kills . | . . . . . . . Critical Parts Destroyed 1 | . . . . . . 1 Critical Strikes 1 | . . . . . . 1 Destroy 1 | . . . . . . 1 Melee Attacks . | . . . . . . . Impact . | . . . . . . . Slashing . | . . . . . . . Piercing . | . . . . . . . Sneak Attacks . | . . . . . . . Combat Hostiles . | . . . . . . . Follow-up Attacks . | . . . . . . . Damage Inflicted 718 | . 73 . 497 . . 148 Guns 671 | . 73 . 450 . . 148 Cannons . | . . . . . . . Explosions 47 | . . . 47 . . . Melee . | . . . . . . . Ramming . | . . . . . . . Kinetic 557 | . 37 . 372 . . 148 Thermal 47 | . . . 47 . . . Explosive . | . . . . . . . Electromagnetic 114 | . 36 . 78 . . . Impact . | . . . . . . . Slashing . | . . . . . . . Piercing . | . . . . . . . Highest Corruption 2 | . . . . . . 2 Average Corruption 1 | . . . . . . 1 Corruption Purged . | . . . . . . . Corruption Blocked . | . . . . . . . Effects 1 | . . . . . . 1 Parts Rejected 1 | . . . . . . 1 Overload Shots . | . . . . . . . Overflow Damage . | . . . . . . . Projectiles . | . . . . . . . Explosions . | . . . . . . . Melee . | . . . . . . . Knockbacks . | . . . . . . . Impact . | . . . . . . . Kinetic . | . . . . . . . Secondary . | . . . . . . . Self-Inflicted Damage . | . . . . . . . Shots . | . . . . . . . Rammed . | . . . . . . . Targets Rammed . | . . . . . . . Kicked . | . . . . . . . Crushed . | . . . . . . . Highest Temperature 229 | . . . 229 . . 149 Average Temperature 90 | . . . 94 . . 87 Received Heat Transfer 617 | . . . 467 . . 150 Siege Activations . | . . . . . . . Martial Activations . | . . . . . . . Shielding Activations . | . . . . . . . Robots Disrupted . | . . . . . . . Combat Hostiles . | . . . . . . . Robots Corrupted . | . . . . . . . Combat Hostiles . | . . . . . . . Parts Fried . | . . . . . . . Impact Corruptions . | . . . . . . . Robots Melted . | . . . . . . . Combat Hostiles . | . . . . . . . Parts Melted . | . . . . . . . Heat Transferred 50 | . . . 50 . . . Parts Sabotaged . | . . . . . . . Parts Stolen . | . . . . . . . Parts Stripped . | . . . . . . . Power Chain Reactions 1 | . . . 1 . . . Alert | -11 -10 -10 -10 -9 -6 -5 ------- Run | Yrd Mat Min Sub Scr Fac Fac Maximum Alert Level . | . . . . . . . Low Security (%) 100 | 100 100 100 . . 100 100 Level 1 . | . . . . . . . Level 2 . | . . . . . . . Level 3 . | . . . . . . . Level 4 . | . . . . . . . Level 5 . | . . . . . . . High Security . | . . . . . . . Max Security . | . . . . . . . Peak Influence 70 | . 70 15 . . . 30 Initial 15 | . . 15 . . . . Average 4 | . 16 7 . . . . Influence Increases 261 | . 82 . 145 . . 34 Destroy 0b10 Robot/C 180 | . 60 . 100 . . 20 Destroy 0b10 Robot/NC 5 | . 5 . . . . . Destroy Leader 22 | . 12 . . . . 10 Successful Hack 5 | . 5 . . . . . Destroy Structure 4 | . . . . . . 4 Lose Combat Pursuer 45 | . . . 45 . . . Influence Decreases 231 | . 42 40 38 107 . 4 Entered New Map 132 | . . 25 . 107 . . Time Decay 95 | . 42 15 38 . . . Lost Part 4 | . . . . . . 4 Squads Dispatched . | . . . . . . . Investigation . | . . . . . . . Extermination . | . . . . . . . Reinforcement . | . . . . . . . Assault . | . . . . . . . Garrison . | . . . . . . . Intercept . | . . . . . . . Searches Triggered . | . . . . . . . Construction Impeded . | . . . . . . . Haulers Reinforced . | . . . . . . . Active Scanning Responses . | . . . . . . . Cargo Convoy Interrupts . | . . . . . . . Stealth | -11 -10 -10 -10 -9 -6 -5 --------- Run | Yrd Mat Min Sub Scr Fac Fac Distress Signals . | . . . . . . . Communications Jammed . | . . . . . . . Distress Signals . | . . . . . . . Times Spotted 23 | . 5 . 12 . . 6 Peak Tracking Total 5 | . 4 . 4 . . 5 Tactical Retreats 2 | . . . 2 . . . Traps | -11 -10 -10 -10 -9 -6 -5 ------- Run | Yrd Mat Min Sub Scr Fac Fac Traps Triggered . | . . . . . . . Indirectly . | . . . . . . . Trap Hack Attempts . | . . . . . . . Triggered . | . . . . . . . Disarmed 7 | . 7 . . . . . Reprogrammed . | . . . . . . . Reused . | . . . . . . . Traps Extracted . | . . . . . . . Installed . | . . . . . . . Triggered . | . . . . . . . Machines | -11 -10 -10 -10 -9 -6 -5 ---------- Run | Yrd Mat Min Sub Scr Fac Fac Machines Disabled . | . . . . . . . Max in Single Turn . | . . . . . . . Machines Repaired . | . . . . . . . Machines Dismantled . | . . . . . . . Machines Sabotaged . | . . . . . . . Overloaded Fab Kills . | . . . . . . . Hacking | -11 -10 -10 -10 -9 -6 -5 --------- Run | Yrd Mat Min Sub Scr Fac Fac Machines Accessed 8 | . 3 . . 4 . 1 Terminals 4 | . 3 . . . . 1 Fabricators . | . . . . . . . Repair Stations . | . . . . . . . Recycling Units . | . . . . . . . Scanalyzers . | . . . . . . . Garrison Access . | . . . . . . . Total Hacks 18 | . 7 . . 10 . 1 Successful 15 | . 5 . . 10 . . Failed 3 | . 2 . . . . 1 Catastrophic . | . . . . . . . Database Lockouts . | . . . . . . . Manual . | . . . . . . . Terminals 8 | . 7 . . . . 1 Fabricators . | . . . . . . . Repair Stations . | . . . . . . . Recycling Units . | . . . . . . . Scanalyzers . | . . . . . . . Garrison Access . | . . . . . . . Terminal Hacks 15 | . 5 . . 10 . . Record 5 | . . . . 5 . . Robot Analysis 4 | . . . . 4 . . Prototype ID Bank 1 | . 1 . . . . . Emergency Access Points 1 | . 1 . . . . . Locate Traps 1 | . 1 . . . . . Disarm Traps 2 | . 2 . . . . . Proto ID Catalog 1 | . . . . 1 . . Fabricator Hacks . | . . . . . . . Repair Station Hacks . | . . . . . . . Recycling Unit Hacks . | . . . . . . . Scanalyzer . | . . . . . . . Garrison Access Hacks . | . . . . . . . Unauthorized Hacks . | . . . . . . . Terminals . | . . . . . . . Fabricators . | . . . . . . . Repair Stations . | . . . . . . . Recycling Units . | . . . . . . . Scanalyzers . | . . . . . . . Garrison Access . | . . . . . . . Data Cores Recovered . | . . . . . . . Used . | . . . . . . . Hacking Detections 3 | . 2 . . . . 1 Full Trace Events . | . . . . . . . Feedback Events . | . . . . . . . Feedback Blocked . | . . . . . . . Robot Schematics Acquired . | . . . . . . . Robots Built . | . . . . . . . Authchips . | . . . . . . . Time . | . . . . . . . Total Robot Build Rating . | . . . . . . . Part Schematics Acquired . | . . . . . . . Parts Built . | . . . . . . . Authchips . | . . . . . . . Time . | . . . . . . . Total Part Build Rating . | . . . . . . . Parts Repaired . | . . . . . . . Time . | . . . . . . . Parts Recycled . | . . . . . . . Recycled Matter . | . . . . . . . Retrieved Matter . | . . . . . . . Retrieved Components . | . . . . . . . Parts Scanalyzed . | . . . . . . . Part Schematics Acquired . | . . . . . . . Parts Damaged . | . . . . . . . Bothacking | -11 -10 -10 -10 -9 -6 -5 ------------ Run | Yrd Mat Min Sub Scr Fac Fac Used RIF Installer . | . . . . . . . Robots Hacked . | . . . . . . . Non-combat . | . . . . . . . Combat . | . . . . . . . Robot Hacks Applied . | . . . . . . . Relay Couplers Released . | . . . . . . . Fabnet Peak Effective % . | . . . . . . . Robots Rewired . | . . . . . . . Allies Hacked . | . . . . . . . Hacks Repelled . | . . . . . . . Allies | -11 -10 -10 -10 -9 -6 -5 -------- Run | Yrd Mat Min Sub Scr Fac Fac Total Allies . | . . . . . . . Largest Group . | . . . . . . . Highest-Rated Group . | . . . . . . . Highest-Rated Ally . | . . . . . . . Total Orders . | . . . . . . . Ally Attacks . | . . . . . . . Total Damage . | . . . . . . . Kills . | . . . . . . . Allies Corrupted . | . . . . . . . Allies Melted . | . . . . . . . Intel | -11 -10 -10 -10 -9 -6 -5 ------- Run | Yrd Mat Min Sub Scr Fac Fac Active Infowar (turns) 1392 | . . . . 721 246 425 IFF 364 | . . . . . . 364 Decoding 1392 | . . . . 721 246 425 Robot Analysis Total 4 | . . . . 4 . . Derelict Logs Recovered 3 | . . . 1 2 . . Drone Launches . | . . . . . . . Drone Recoveries . | . . . . . . . Decoded 0b10 Intel 17 | . . . . . 7 10 Traps 4 | . . . . . 1 3 Emergency Access 2 | . . . . . 2 . Items 10 | . . . . . 3 7 Machines 1 | . . . . . 1 . Exploration | -11 -10 -10 -10 -9 -6 -5 ------------- Run | Yrd Mat Min Sub Scr Fac Fac Turns Passed 4120 | 44 233 53 861 2258 246 425 Spaces Moved 2385 | 35 169 8 492 1387 145 149 Core 75 | 10 . . 65 . . . Treads 1875 | . . . 194 1387 145 149 Legs 323 | 25 169 8 121 . . . Wheels 112 | . . . 112 . . . Hover . | . . . . . . . Flight . | . . . . . . . Fastest Speed 50 | 50 120 120 110 160 160 160 Average Speed 152 | 100 120 120 144 160 160 160 Slowest Speed 200 | 120 120 120 200 160 160 160 Overloaded Moves . | . . . . . . . Propulsion Burnouts . | . . . . . . . Robots Hopped . | . . . . . . . Potential Cave-ins . | . . . . . . . Cave-ins Triggered . | . . . . . . . Exploration Rate (%) 26 | 3 43 3 33 93 5 6 Regions Visited 6 Branch Regions 3 Pre-discovered Areas 2 | . . 1 . 1 . . Known Exits Taken . | . . . . . . . Unknown Exits Taken 6 | 1 1 1 1 1 1 . Scrap Searched 9 | . . . 5 4 . . Spaces Dug . | . . . . . . . Terrain Destroyed 5 | . . . 2 . . 3 Melee . | . . . . . . . Projectile 3 | . . . . . . 3 AOE 2 | . . . 2 . . . Terrain Rammed . | . . . . . . . Walls Destroyed . | . . . . . . . Machines Disabled . | . . . . . . . Actions | -11 -10 -10 -10 -9 -6 -5 --------- Run | Yrd Mat Min Sub Scr Fac Fac Total 2764 | 44 191 51 567 1426 159 326 Wait 256 | . 9 44 6 25 4 168 Move 2379 | 34 168 7 491 1386 144 149 Hop . | . . . . . . . Pick Up 32 | 5 6 . 8 5 5 3 Fast Attach 2 | . . . 2 . . . Attach 23 | 5 2 . 7 1 6 2 Detach 1 | . . . 1 . . . Swap 8 | . 1 . 3 4 . . Drop 11 | . 1 . 5 5 . . Fire 52 | . 4 . 44 . . 4 Melee . | . . . . . . . Ram . | . . . . . . . Kick . | . . . . . . . Crush . | . . . . . . . Escape Stasis . | . . . . . . . Rewire . | . . . . . . . Trap . | . . . . . . . Miscellaneous . | . . . . . . . Route ------- -11/Scrapyard -10/Materials -10/Mines -10/Subcaves (discovered 3 exits: [*Mat] / *Rec / *Scr) -9/Scraptown (discovered 2 exits: [*Fac x2]) -6/Factory (discovered 2 exits: *Fac / Low) -5/Factory History --------- Turn | Location | Event 5 | -11/Scrapyard | Discovered new exit (range 16) 45 | -11/Scrapyard | Entered Materials 234 | -10/Materials | Discovered new exit (range 12) 278 | -10/Materials | Entered Mines 279 | -10/Mines | Learned location of Storage (-9) 308 | -10/Mines | Build established: Mutant 320 | -10/Mines | Discovered new exit (range 6) 331 | -10/Mines | Entered Subcaves 332 | -10/Subcaves | Approached by a straggling Scientist 565 | -10/Subcaves | Lost 4 parts (2n2w) 712 | -10/Subcaves | A swath of the cavern ceiling suddenly collapsed 787 | -10/Subcaves | Discovered new exit (range 9) 958 | -10/Subcaves | Build established: Derelict-Mutant 1025 | -10/Subcaves | Shifting Twisted Machinery released Spk. Treads 1037 | -10/Subcaves | Shifting Twisted Machinery released Shrapnel Trap 1097 | -10/Subcaves | Scientist uncovered a shortcut to Scraptown 1132 | -10/Subcaves | Identified exit to Recycling 1163 | -10/Subcaves | Core integrity fell below 50% 1192 | -10/Subcaves | Entered Scraptown 1296 | -9/Scraptown | Heard Great Nut preacher, LISTEN AND RECITE! 1598 | -9/Scraptown | Scanned Subdweller tech in exchange for log data 1604 | -9/Scraptown | Learned Research stockpile data 1696 | -9/Scraptown | Discovered new exit (range 13) 1742 | -9/Scraptown | Visited Awakened 1790 | -9/Scraptown | Visited Cyclists 2107 | -9/Scraptown | Visited IN-MT5's Study 2146 | -9/Scraptown | Visited The Evicted 2200 | -9/Scraptown | Visited CR-KLE's Repair Center 2229 | -9/Scraptown | Visited Cave Peace 2245 | -9/Scraptown | Visited TADAMA 2299 | -9/Scraptown | Visited UFD Registry 2299 | -9/Scraptown | Registered with UFD as "Softnuts" 2352 | -9/Scraptown | Visited Science Guys 2416 | -9/Scraptown | Visited Derelict Rescue Squad 2426 | -9/Scraptown | Found DRS Beacon 2459 | -9/Scraptown | Visited Chapter 10 2668 | -9/Scraptown | Visited Analyses Database 2708 | -9/Scraptown | Visited Infowarlord's Domain 2762 | -9/Scraptown | Visited Science Testing Area 2783 | -9/Scraptown | Visited Cartography Club 2821 | -9/Scraptown | Found Surveybot 17 Chip 2968 | -9/Scraptown | Discovered new exit (range 3) 3080 | -9/Scraptown | Visited Junk Repository 3139 | -9/Scraptown | Visited Scrap Suit Storage 3185 | -9/Scraptown | Visited A0-MCA Data Center 3195 | -9/Scraptown | Given an A- rating by A0-MCA 3201 | -9/Scraptown | Found A0-MCA's Component Scanner 3335 | -9/Scraptown | Met Optimus 3335 | -9/Scraptown | Accepted into 0bPrime 3450 | -9/Scraptown | Entered Factory 3450 | -6/Factory | Evolved 8 slots: Power x2, Propulsion x1, Utility x4, Weapon x1 3451 | -6/Factory | Identified exit to Lower Caves 3454 | -6/Factory | Discovered new exit (range 16) 3696 | -6/Factory | Entered another Factory area 3696 | -5/Factory | Evolved 2 slots: Propulsion x1, Utility x1 3755 | -5/Factory | Build established: Derelict-Gunner 4121 | -5/Factory | Self-destructed Last Messages --------------- 04041_ >> DECODED: Shock Trap location. 04064_ >> DECODED: Adv. Weight Redist. System location. 04092_ >> DECODED: Variable Charge Gun location. 04095_ ALERT: All DSF locations entering lockdown mode. 04107_ Critical hit (Burn: +37). 04111_ Slug penetrates G-67 Veteran. 04111_ G-67 Veteran suffers critical hit (Destroy). 04111_ Destroyed Lgt. Antimatter Reactor. 04111_ Slug penetrates Wall. 04114_ Fission Core destroyed. 04115_ System corrupted: Imp. Medium Treads rejected. 04117_ Spk. Treads destroyed. 04117_ G-67 Veteran destroyed. 04117_ Switching to secondary target: G-50 Soldier. 04117_ Slug penetrates Earth. Map ----- +----------------------------------------------------+ | ?????????????????????????????????????????????????? | | ?????????????????????????????????????????????????? | | #????????????????????????????????????????????????? | | #????????????????????????????????????????????????? | | #????????????????????????????????????????????????? | | #???????#####????????????????????????????????????? | | #??# ?? #????????????????????????????????????? | | #??# """ #????????????????????????????????????? | | #??# """ #????????????????????????????????????? | | #??# """ ##############???????????????????????? | | #??# #! [= #???????????????????????? | | #??# """ # == """ #???????????????????????? | | #??# """ # """ #???????????????????????? | | #??# """ # """ #???????????????????????? | | #??# # [#???????????????????????? | | ########+#### """ """ #???????????????????????? | | # """ """ #???????????????????????? | | ^ # """ """ #???????????????????????? | | """ """ + #???????????????????????? | | """ """ # #???????????????????????? | | ] ^""" """ # #???????????????????????? | | ^ # #???????????????????????? | | """ """ ###+#######+#####+####???????????????? | | """ """ p p #???????????????? | | """ """ #???????????????? | | @ ; #????????????? | | """ """ g ! #???????????????? | | """ """ k g%g #???????????????? | | """ """ ################![ #???????????????? | | ???????????????? #[??????????????? | | """ ??" ???????????????? #???????????????? | | ""? ??" ???????????????? ; ??????????????? | | ""????? ????????????????? ^ ^# ?????????????? | | ????????????????????????? #? ???????????? | | ????????????????????????? #?? ???????????? | | ##???????????????*?????????? #???????????????? | | ???????????????????????????? #???????????????? | | ???????????????????????????? ??????????????????? | | ?????=???????????????????????????????????????????? | | ?????????????????????????????????????????????????? | | ?????????????????????????????????????????????????? | | ?????????????????????????????????????????????????? | | ?????????????????????????????????????????????????? | | ?????????????????????????????????????????????????? | | ?????????????????????????????????????????????????? | | ?????????????????????????????????????????????????? | | ?????????????????????????????????????????????????? | | ?????????????????????????????????????????????????? | | ?????????????????????????????????????????????????? | | ?????????????????????????????????????????????????? | +----------------------------------------------------+ Best States ------------- Heat Dissipation 40 Energy Generation 28 Energy Capacity 610 Matter Stores 300 Matter Capacity 550 Sight Range 16 Terrain Scan Density 1210 Core Shielding 20 Evasion (%) 55 Targeting Accuracy 5 Recoil Reduction 3 Item Schematics ----------------- None Robot Schematics ------------------ None Fabricated ------------ Nothing Repaired ---------- Nothing Alien Tech Used ----------------- None Achievements -------------- None Challenges ------------ None Game ------ Seed ProcessingSlugVibroblade Manual? 0 Play Time 00:30:20 Cumulative 42.0 hours Start 2025.05.20 @ 20:42:13 End 2025.05.21 @ 10:50:48 Sessions 3 Manual Loads 0 Difficulty Rogue Special Mode None Game No. 88 Rogue 88 Adventurer 0 Explorer 0 Win Type - Total 0 Types 0/0/0/0/0/0/0/0/0/0 Lore% 53 Gallery% 41 Achievement% 37 Wizard Run 0 Options --------- Layout 1 ASCII 0 Keyboard 0 Movement Mouse Keybinds 0 Fullscreen 1 Font 24/Proggy Map View 50x35 Zoom Use 0% Tactical HUD 1 Map Filters NONE Filters NONE Steam 1 RUN: 9205788d-897c-47a4-b630-8bbc69ef3ded